Workbook

Sheet Guide
A1: This document is fully formatted to print well on an A4 sheet as-is. Please preview your work before printing. Hiding rows may cause tables to move out of shape.
A4: Note: | B4: Start completing this form from the very top and follow through systematically. The best way to navigate the form is to use the TAB key on your keyboard. Every press will take you to the next item you should complete.
A6: Note: | B6: All columns from EL onwards do not print. Everything in column EL is there to guide you but not a necessary part of the PPBF.
A8: Note: | B8: You may go to cell EN1 to select the program(s) that are applicable to your centre. You can choose CSP, CDSP, or Both to display only your choice on the form. Ensure that "Needed" is always selected.
A10: Note: | B10: Some cells are automatically calculated and will only show when other related portions of the PPBF are duly completed. Only ask for help when you have gone through the form and you still have challenges.
A12: Note: | B12: Where you see a red arrow-tip at the upper right corner of a cell (as here), place the mouse there to see additional information.
A14: Note: | B14: The fact that something shows well on your screen does not mean it will print well and vice-versa. Always do a Print Preview to be sure. Know your printer and its settings. Only call for help when the previews show it will not print well and you do not know how to rectify it. Always save your work before printing.
A16: Note: | B16: If you would not need an entire page, you may choose not to print them by printing only required pages. You can do this well if you use Print Preview.
A18: Note: | B18: You may choose to hide rows that do not contain data in order to save printing cost.
A20: Note: | B20: Should you need more rows in a given segment, please inform your PF so that it can be done for you. Doing so yourself may destroy some formatting or formulas.
A23: Colour codes
B24: You MUST type in this area (with respect to your core program)
B25: Related to spiritual outcome
B26: Related to physical outcome
B27: Related to cognitive outcome
B28: Related to socio-emotional outcome
B29: Related to administration
B30: Related to service and extra curricula activities
B31: Other grants
B32: Related to project staffs
B34: Related to CDSP
B35: Related to CSP
A38: Section 1: General Information
A39: CDSP number | B39: Enter the number as GH###, where # represents a numeral.
A40: CSP number | B40: Enter the number as GHCS#, where # represents a numeral. If your CSP number is in the tens, then enter the number in the format GHC##.
A41: Location | B41: Enter the full name of the church and location.
A42: email address | B42: The email address should be that of the project, not an individual. This address will be used to correspond between you and your PF.
A43: FY | B43: Enter only two digits of the Fiscal Year.
A44: Date of Submission | B44: Although you may do so, this date is actually meant for the PF to enter during your final submission. You should type it in the mm/d/yy format and it will display in the format shown below.
A45: Names | B45: Enter the full names of the individuals without titles.
A46: Programs | B46: Choose only the relevant program for your centre. Depending on your choice, other options may be available to you.
A49: 2. Information about the Program
B50: Be very realistic in the numbers you enter here. Confirm details with PF.
B51: Putting in a number for additional children does not guarantee you will get it. Even if you do, you may not get the requested number and/or in the month requested.
A54: 3. Strategic Planning (Based upon recent assessment and future goals)
B55: Follow the steps outlined on the Preparation tab. Enter the relevant details in the respective segments.
A56: Person Responsible | B56: Under Person Responsible column for the annual programmatic areas, please enter names. Use titles only when held by a single individual. This is to avoid ambiguity.
A59: 4. Annual Budget
A60: Monthly Budget - Income | B60: You can only complete the Other Funds/Grants portion (refer to colour code above). The rest are automatic.
B61: The amounts that you put in here must be equal to or greater than the expenses expected out of each code. Failing to do this will let the total turn red at the corresponding Monthly Budget - Expense.
B62: The Quantity and Frequency columns have been divided into two. Please fill the left sides with figures only and the descritptive on the right side.
A63: Coding | B63: Choose the account codes carefully. The codes must be R### for receipt codes and E### for the corresponding expense codes.
A64: Salaries | B64: In the salaries portion, type the basic salary and the code before you can see the PAYE.
A65: Expenses | B65: Under expenses, use the details from the Preparation tab to complete this segment.
A66: Codes | B66: If you do not type a code for an item, that item's expenditure will not be counted. Refer to the Codes tabs for a complete list of all the account codes.
A67: Budget Summary | B67: This segment is for analysis of the budgeted expenditure only. It allows you to see how you have spread your budget.
A70: Appendix
B71: Plan for any CIV you intend to undertake in the FY. This is a very good platform to look at the various ways you may use to achieve your strategic plans.
A74: Monthly Budget Worksheets
A75: Advise | B75: It is highly recommended that you only start completing these worksheets when your annual budgets have been approved. Failing to do this means that you will have to make two changes anytime an item is changed.
A76: Best way | B76: The best way to complete this section is to split the screen horizontally. Let the upper portion display the budgeted expenditure and the lower portion show the budget worksheet. You can then transfer the expenditure line-by-line into the respective code worksheet. You will then do the monthly spread accordingly.
A77: Summary | B77: Everything you have entered in the budget worksheets is nicely summarized here.
A80: Year-to-Date Budget Summary - Expenses
B81: This is not part of the PPBF. It is there to help you easily pick out the budgets by code in order to prepare your Variance Report.
A84: Acronyms
A85: CDSP | B85: Child Development through Sponsorship Program
A86: CSP | B86: Child Survival Program
A87: CIGH | B87: Compassion International Ghana
A88: ICP | B88: Implementing Church Partner
A89: MCU | B89: Mother-Child Unit
A90: PF | B90: Partnership Facilitator
A91: PPBF | B91: Partner Planning and Budgeting Form
C96: Income tax table
D97: Taxable Amount | E97: Tax % | F97: Tax Due | G97: Cum Income | H97: Cum Tax
D98: GH¢ | F98: GH¢ | G98: GH¢ | H98: GH¢
C99: First | D99: 120 | E99: 0 | F99: 0 | G99: 120 | H99: 0
C100: Next | D100: 60 | E100: 0.05 | F100: 3 | G100: 180 | H100: 3
C101: Next | D101: 84 | E101: 0.1 | F101: 8.4 | G101: 264 | H101: 11.4
C102: Next | D102: 2136 | E102: 0.175 | F102: 373.8 | G102: 2400 | H102: 385.2
C103: Above | D103: 2400 | E103: 0.25
C106: CDSP Child Development Outcomes
C107: Spiritual Outcome: Demonstrates commitment to the Lordship of Christ
D108: · Knows and understands the Bible
E109: ~knows basic narrative stories of the Bible, understands basic Christian
E110: theological concepts, memorized important scriptures, and reflects a
E111: biblical worldview in his/her thinking.
D112: · Confesses Jesus as Savior
E113: ~knows the gospel and made a profession of faith appropriate to the
E114: tradition of the local church
D115: · Practices spiritual disciplines of prayer, Bible study, worship, and service
E116: ~knows and practices four basic spiritual disciplines in an age-appropriate
E117: manner
C119: Physical Outcome: Chooses good health practices and is physically healthy
D120: · Demonstrates understanding of his/her body
E121: ~age-appropriate understanding of his/her body, hygiene and physical
E122: development
E123: ~aware of poverty-related diseases, their prevention and effective treatment
E124: ~knows the limits of acceptable behavior as it relates to physical and sexual
E125: abuse and able to take measures to protect herself/himself
D126: · Reduced incidence of illness, nutritional deficiencies, and physical impediments
E127: ~experiences reduced incidences of poverty-related diseases and has
E128: knowledge of prevention of those diseases
E129: ~experiences reduced nutritional deficiencies and has knowledge of
E130: prevention of nutritional deficiencies
E131: ~corrected and/or learned to manage: vision deficiencies, dental disease, hearing
E132: deficiencies and physical disfigurements
E133: ~develops appropriate motor skills
D134: · Takes responsibility for wise life choices about health and sexuality
E135: ~age-appropriate and godly understanding and practice of sexuality,
E136: sexual abstinence outside of marriage, and reproductive health
E137: ~understands and does not practice high-risk “traditional” health and
E138: sexuality practices
C140: Cognitive Outcome: Exhibits the motivation and skills to be economically self-supporting
D141: · Completes at least primary education
E142: ~advances and proves successful in formal education by completing primary
E143: school and secondary school whenever possible
E144: ~qualifies for entry into university
D145: · Cultivates unique vocational interests and intelligence
E146: ~understands, values and cultivates own unique intelligence(s)
E147: ~utilizes own unique intelligence(s) to serve or assist others in the project, church
E148: or community
E149: ~plans how to maximize abilities to achieve economic self-sufficiency by setting
E150: life goals and acting upon them
E151: ~develops his/her capacity to effectively communicate through written
E152: communication with their sponsor
D153: · Learns and utilizes at least one incoming-generating skill
E154: ~learns an income-generating vocation/skill and demonstrates professional
E155: competency to the degree that they are able to utilize it to earn income
E156: ~formal knowledge in managing a small business or microenterprise
E157: ~understands basic principles of managing money, credit and saving
C159: Socio-emotional: Interacts with other people in a healthy and compassionate manner
D160: · Exercises self-management
E161: ~exercises self-management
E162: ~demonstrates responsible decision making
D163: · Applies self and social awareness in making responsible life choices
E164: ~reflects self-awareness
E165: ~reflects social awareness
D166: · Exhibits effective interpersonal relationship skills
E167: ~demonstrates interpersonal relationship skills

Sheet Preparation
A1: STEPS IN PPBF PREPARATION | AE1: Month | AF1: Year
AA2: July | AB2: JUL | AC2: 1 | AD2: 7
A3: STEP | B3: ACTIVITIES | C3: DURATION (DAYS) | D3: PERSON RESPONSIBLE | AA3: August | AB3: AUG | AC3: 2 | AD3: 8
A4: 1 | B4: Review of previous year's budget by all stakeholders | C4: 2 | AA4: September | AB4: SEP | AC4: 3 | AD4: 9
B5: a) Focus group discussion with the following stakeholders to get their input | AA5: October | AB5: OCT | AC5: 4 | AD5: 10
B6: *Children in age groups | AA6: November | AB6: NOV | AC6: 5 | AD6: 11
B7: *Church Partner Committee/ Pastor | AA7: December | AB7: DEC | AC7: 6 | AD7: 12
B8: *Volunteers | AA8: January | AB8: JAN | AC8: 7 | AD8: 1
B9: *Child Development Workers | AA9: February | AB9: FEB | AC9: 8 | AD9: 2
B10: *Parent/Caregivers Committee | AA10: March | AB10: MAR | AC10: 9 | AD10: 3
B11: b) Plenary session - Group presentation | AA11: April | AB11: APR | AC11: 10 | AD11: 4
B12: c) Plenary discussion of future goals for the children | AA12: May | AB12: MAY | AC12: 11 | AD12: 5
B13: d) Collation of views and inputs of stakeholders | AA13: June | AB13: JUN | AC13: 12 | AD13: 6
B14: Measure achievements against targets. What worked well and what did not work well? (prepare minutes and file for future reference)
A15: 2 | B15: Identification of children's (or mothers' if CSP) needs based on the PFM outcomes | C15: 1
B16: Cognitive -
B17: Socio-emotional -
B18: Physical -
B19: Spiritual -
A20: 3 | B20: Prioritization of needs/activities | C20: 1
B21: Compilation of needs indentified in the above processes and My Plan for Tomorrow
B22: Prioritize the needs (ask yourself, "What are the most important of all that we have chosen?" List them in the order of importance. Ask yourself again, "What might possibly go wrong so that we may not achieve our targets?"
B23: Detail what (activities) you plan to carry out throughout the year to achieve the outlined targets
A24: 4 | B24: Detail Activity costing/preparation of draft budget | C24: 5
B25: CPC meeting to either set or review salaries and wages for the year
B26: a) What quantity of items do we need to carry out the activity?
B27: b) When do we need the items?
B28: c) How often do we want to carry out the activity?
B29: d) What will the office need in order to be able to function?
B30: All staff and trusted people should go out to find the costs of the items that will be needed to carry out the needs/activities. The transportation fares to the venues to purchase items should be noted.
B31: Which activities will the church fund? How much will they spend and when?
A32: 5 | B32: Validation of draft budget/preparation of final Draft | C32: 3
B33: Make photocopies for all stakeholders (include your PF) to review the draft budget and comment (add the soft copy to your PF if available)
B34: Fine tuning of budget by all stakeholders (this may mean a lot of to-and-fro movements; hence patience, excellence and consistency is highly recommended)
B35: Presentation of final draft budget to PF for review
B36: Presentation of final copy of budget to all stakeholders for signing
B37: Presentation to Compassion field office for final signing
B38: Project takes one copy and Compassion keeps one copy

Sheet PPBF
A1: Partner Planning & Budgeting Form (PPBF) | EN1: Program
EN2: Needed
A3: 1. General Information | EN3: Needed
EN4: Needed
N5: CDSP number: | AC5: GH 561 | CG5: CSP number: | EN5: Needed
N6: Name of Church Partner: | AJ6: THE APOSTOLIC CHURCH-GHANA | EN6: Needed | EQ6: =IFERROR(IF(AND(LEN(AC5)=5,LEFT(AC5,2)="GH",ISERROR(INT(RIGHT(AC5,3))/2)=FALSE,AB9>=14),"CDSP OK","CDSP not OK"),0) -> CDSP not OK
N7: Location and/or postal address: | AO7: SAWER-SOMANYA. P O BOX 434 | EN7: Needed | EQ7: =IFERROR(IF(AND(LEN(CV5)=5,OR(AND(LEFT(CV5,4)="GHCS",ISERROR(INT(RIGHT(CV5,1))/2)=FALSE),AND(LEFT(CV5,3)="GHC",ISERROR(INT(RIGHT(CV5,2))/2)=FALSE,IFERROR(INT(RIGHT(CV5,2))>9,FALSE))),AB9>=14),"CSP OK","CSP not OK"),0) -> CSP not OK
N8: e-mail address: | AO8: sawerapostoliccdc@yahoo.com | EN8: Needed | EP8: =IFERROR(VLOOKUP(CDSPstart,Preparation!AA2:AD13,3,FALSE),0) -> 0 | EQ8: =IF(AND(EQ6="CDSP OK",chooseCDSP="On-going"),DATE(INT(20&(RIGHT(AB9,2)-1)),7,1),IF(AND(EQ6="CDSP OK",chooseCDSP="New"),DATE(INT(20&RIGHT(AB9,2)-1),VLOOKUP(CDSPstart,Preparation!AA2:AD13,4,FALSE),1),0)) -> 0
N9: Fiscal Year: | Y9: FY | AB9: 14 | AE9: =IF(AND(EQ8=0,EQ9=0),0,IF(OR(AND(EQ8=0,EQ9<>0),AND(EQ8<>0,EQ9=0)),"(from "&TEXT(MAX(EQ8,EQ9),"mmmm d, yyyy")&" to June 30, "&YEAR(MAX(EQ8,EQ9))+1&")",IF(AND(EQ8<>0,EQ9<>0),"(from "&TEXT(VLOOKUP(MIN(EP8:EP9),EP8:EQ9,2,FALSE),"mmmm d, yyyy")&" to June 30, "&YEAR(MIN(EQ8,EQ9))+1&")",0))) -> 0 | BW9: Date of Submission: | EN9: Needed | EP9: =IFERROR(VLOOKUP(CSPstart,Preparation!AA2:AD13,3,FALSE),0) -> 0 | EQ9: =IF(AND(EQ7="CSP OK",chooseCSP="On-going"),DATE(INT(20&(RIGHT(AB9,2)-1)),7,1),IF(AND(EQ7="CSP OK",chooseCSP="New"),DATE(INT(20&RIGHT(AB9,2)-1),VLOOKUP(CSPstart,Preparation!AA2:AD13,4,FALSE),1),0)) -> 0
CZ10: (dd/mm/yyyy) | EN10: Needed
N11: Name of Partnership Facilitator: | AO11: OPHELIA AMPOMAH-BENEFO | EN11: Needed
N12: Name(s) of Project Staff preparing this form: | AY12: 1) | BB12: PHILIP APPIAH YAMOAH | CF12: 3) | CI12: ISAIAH OKLEY | EN12: Needed
AY13: 2) | BB13: RUTH TETTEY BARKEY | CF13: 4) | CI13: CATHARINE BOAKOR | EN13: Needed
EN14: Needed
EN15: Needed
EN16: Needed
EN17: Needed
EN18: Needed
N19: Child Development through Sponsorship | AN19: On-going | AZ19: =IF(OR(chooseCDSP="",chooseCDSP="None",chooseCDSP="On-going"),"","Starting") ->  | EN19: CDSP
EN20: CDSP
EN21: CSP
N22: Child Survival Program | AN22: None | AZ22: =IF(OR(chooseCSP="",chooseCSP="None",chooseCSP="On-going"),"","Starting") ->  | EN22: CSP
EN23: CSP
EN24: Both
EN25: Needed
EN26: Needed
EN27: Needed
EN28: Needed
A29: Exchange rate for the U.S Dollar: | AS29: 2 | BE29: Sponsored child rate and unsponsored child rate: | DD29: US$ | DH29: 21 | DX29: US$ | EB29: =0.5*DH29 -> 10.5 | EN29: Needed
EL30: CSP start-up | EN30: Needed
A31: =IF(AND(LEFT(CV5,3)="GHC",AB9>=14,chooseCSP="New",XRate<>""),"CSP startup income:","") ->  | U31: =IF(A31="","","US") ->  | Y31: =IF(A31="",0,IF(EL31="",3000,EL31)) -> 0 | AR31: =IF(A31="","","GH¢") ->  | AS31: =Y31*XRate -> 0 | BE31: Total contribution from Church Partner (from budget): | DD31: US$ | DH31: =IF(OR(EB31=0,XRate=0),0,EB31/XRate) -> 0 | EA31: GH¢ | EB31: =AE716+AE719 -> 0 | EN31: Needed
EN32: Needed
A33: =IF(AND(LEFT(CV5,3)="GHC",AB9>=14,OR(chooseCSP="New",chooseCSP="On-going"),XRate<>""),"CSP monthly income:","") ->  | U33: =IF(A33="","","US") ->  | Y33: =IF(A33="",0,IF(EL35="",3000,EL35)) -> 0 | AR33: =IF(A33="","","GH¢") ->  | AS33: =Y33*XRate -> 0 | BE33: Total Compassion contribution requested (from budget): | DD33: US$ | DH33: =IF(OR(EB33=0,XRate=0),0,EB33/XRate) -> 47703.2 | EA33: GH¢ | EB33: =AE702+AE714 -> 95406.4 | EN33: Needed
EL34: CSP monthly support | EN34: Needed
BE35: Total contribution from Other Sources (from budget): | DD35: US$ | DH35: =IF(OR(EB35=0,XRate=0),0,EB35/XRate) -> 0 | EA35: GH¢ | EB35: =AE721-SUM(EB31+EB33) -> 0 | EN35: Needed
EN36: Needed
A37: For Office Use Only -- Do not write in this space. | EN37: Needed
EN38: Needed
EN39: Needed
EN40: Needed
EN41: Needed
EN42: Needed
EN43: Needed
EN44: Needed
EN45: Needed
A46: 2. Information about the Program | EN46: Needed
EN47: Needed
N48: Age Group | AP48: CDSP | CM48: TOTAL | EN48: CDSP
AP49: Number of Sponsored Children | BN49: Number of Unsponsored Children | CM49: TOTAL | EN49: CDSP
N50: 3-5 | AP50: 34 | BN50: 52 | CM50: =SUM(AP50:CL50) -> 86 | EN50: CDSP
N51: 6-8 | AP51: 37 | BN51: 51 | CM51: 88 | EN51: CDSP
N52: 9-11 | AP52: 18 | BN52: 9 | CM52: 27 | EN52: CDSP
N53: 12-14 | CM53: 0 | EN53: CDSP
N54: 15-18 | CM54: 0 | EN54: CDSP
N55: Above 18 | CM55: 0 | EN55: CDSP
N56: TOTAL | AP56: =SUM(AP50:AR55) -> 89 | BN56: =SUM(BN50:BQ55) -> 112 | CM56: =SUM(CM50:CV55) -> 201 | EN56: CDSP
N57: Registered Beneficiary Details | EN57: CSP
N58: Age Group | AP58: CSP | CM58: TOTAL | EN58: CSP
N59: Prenatal (pregnant women) | CM59: =SUM(AP59:CL59) -> 0 | EN59: CSP
N60: Birth to 12 months | CM60: =SUM(AP60:CL60) -> 0 | EN60: CSP
N61: 12-24 months | CM61: =SUM(AP61:CL61) -> 0 | EN61: CSP
N62: 25-36 months | CM62: =SUM(AP62:CL62) -> 0 | EN62: CSP
N63: CSP children 37-48 months old | CM63: =SUM(AP63:CL63) -> 0 | EN63: CSP
N64: TOTAL | AP64: This is the sum of children and pregnant women | CM64: =SUM(CM59:CV63) -> 0 | EN64: CSP
EN65: Needed
N66: About how many sponsorships per month do you anticipate for your centre? | CE66: 10 | EN66: CDSP
EN67: CDSP
N68: Will you get additional children this year? | AZ68: Yes | BI68: If yes, in which month? | CE68: MAR | CN68: How many children? | DG68: 60 | EN68: CDSP
EN69: Needed
EN70: Needed
EN71: Needed
EN72: Needed
EN73: Needed
EN74: Needed
EN75: Needed
EN76: Needed
EN77: Needed
EN78: Needed
EN79: Needed
EN80: Needed
EN81: Needed
EN82: Needed
EN83: Needed
EN84: Needed
EN85: Needed
EN86: Needed
A87: 3. Strategic Planning (Based upon recent assessment and future goals) | EN87: Needed
EN88: Needed
D89: Most Critical Project/Program Needs (what are the biggest obstacles to achieving the Outcomes?) | EN89: Needed
D90: By two years time 100% of our children who can`t read nor write should be able to read and write standard basic English | EN90: Needed
D91: 1. High rate of malaria infection among children in the community impedes children health and education | EN91: Needed
D92: 2. Inability of some children to read and write due to low starndard of Education. | EN92: Needed
D93: 3. High illiteracy rate amoung caregivers makes it difficult to achieve caregivers training outcomes | EN93: Needed
D94: 4. The low rate of participation of Caregivers in trainings and meetings organised by the Project delays in decision making and implementaion for the children | EN94: Needed
D95: 5. More than 60% of our Care givers earns less than 5 cedis a day from their petty trading which they are unable to provide for their children due the fact that most | EN95: Needed
D96: of them are single parents. | EN96: Needed
D97: 6. Inadequate portable water supply at project site for children leds to delays in food preparation | EN97: Needed
D98: 7. Lack of toilet facility at Project Centre which has led to project children moving from the centre to far distant, and this cause a lot of inconviniences. | EN98: Needed
EN99: Needed
EN100: Needed
EN101: Needed
EN102: Needed
EN103: Needed
EN104: Needed
EN105: Needed
EN106: Needed
EN107: Needed
EN108: Needed
EN109: Needed
EN110: Needed
EN111: Needed
EN112: Needed
EN113: Needed
EN114: Needed
EN115: Needed
EN116: Needed
EN117: Needed
EN118: Needed
EN119: Needed
EN120: Needed
EN121: Needed
EN122: Needed
EN123: Needed
EN124: Needed
EN125: Needed
EN126: Needed
EN127: Needed
EN128: Needed
EN129: Needed
C130: PRIMARY OBJECTIVES FOR THE FISCAL YEAR (July 1 – June 30) | EN130: Needed
EN131: Needed
N132: AREAS | AO132: OBJECTIVES FOR THE FISCAL YEAR | CX132: PERSON RESPONSIBLE | EN132: Needed
AO133: (Specific Areas of Focus to Achieve Outcomes) | EN133: Needed
AO134: List for CSP and for CDSP | EN134: Needed
N135: SPIRITUAL | AO135: 1 | AQ135: To ensure that 100 project children will be able to recite at least two | CZ135: SOCIAL WORKER | EN135: Needed
AQ136: Memory Verses from the Bible at the end of June, 2014 | EN136: Needed
AO137: 2 | AQ137: To ensure that 70 project children will know and accept Jesus Christ | CZ137: SOCIAL WORKER | EN137: Needed
AQ138: as their Lord and Saviour by the end of June, 2014. | EN138: Needed
AO139: 3 | AQ139: By the end of June 2014,100 project children will read and pray | CZ139: SOCIAL WORKER | EN139: Needed
AQ140: simple Prayer every morning and evening at home | EN140: Needed
AO141: 4 | AQ141: By the end of June, 2014.100 project children can narrate at least one | CZ141: SOCIAL WORKER | EN141: Needed
AQ142: simple Bible Story | EN142: Needed
AO143: 5 | AQ143: To ensure that 10 project Children will be able to preach the Word of | CZ143: SOCIAL WORKER | EN143: Needed
AQ144: God and evengelise to their peers within the community | EN144: Needed
AQ145: at the end of June , 2014 | EN145: Needed
EN146: Needed
EN147: Needed
EN148: Needed
EN149: Needed
EN150: Needed
EN151: Needed
EN152: Needed
EN153: Needed
N154: PHYSICAL | AO154: 1 | AQ154: To help 100 of project children to avoid hygiene related diseases such | CZ154: HEALTH WORKER | EN154: Needed
AQ155: as Diarrhoea, Cholera and Typhoid Fever etc by the end of June, 2014. | EN155: Needed
AO156: 2 | AQ156: 201 project children will have access to free and prompt medical | CZ156: HEALTH WORKER | EN156: Needed
AQ157: medical treatment at the end of June , 2014. | EN157: Needed
AO158: 3 | AQ158: To ensure that project children are physically fit by the end of June,2014 | CZ158: HEALTH WORKER | EN158: Needed
EN159: Needed
AO160: 4 | AQ160: 120 Children will practise proper hand washing | CZ160: HEALTH WORKER | EN160: Needed
AQ161: before eating and after visiting the toilet by the end of FY14 | EN161: Needed
AO162: 5 | AQ162: To know the Health status of all project Children by the end of FY 14 | CZ162: HEALTH WORKER | EN162: Needed
AQ163: by undergoing one general comprehensive health screening | EN163: Needed
AO164: 6 | AQ164: follow up on all referals made during the comprehensive health | EN164: Needed
AQ165: screening. | EN165: Needed
EN166: Needed
EN167: Needed
EN168: Needed
EN169: Needed
EN170: Needed
EN171: Needed
EN172: Needed
EN173: Needed
EN174: Needed
N175: AREAS | AO175: OBJECTIVES FOR THE FISCAL YEAR | CX175: PERSON RESPONSIBLE | EN175: Needed
AO176: (Specific Areas of Focus to Achieve Outcomes) | EN176: Needed
AO177: List for CSP and for CDSP | EN177: Needed
N178: COGNITIVE | AO178: 1 | AQ178: To ensure that 100 project children will be able to identify their God-given | CZ178: COORDINATOR | EN178: Needed
AQ179: talents and future careers at the end of June, 2014. | EN179: Needed
EN180: Needed
EN181: Needed
AO182: 2 | AQ182: To ensure that 70 of children between age 5 to 9 years who cannot | CZ182: COORDINATOR | EN182: Needed
AQ183: Read nor Write are enrolled in our Reading and Learning Project. | EN183: Needed
AO184: 3 | AQ184: To ensure 200 school enrollment of all project children at the end | EN184: Needed
AQ185: by the end of FY 14 | EN185: Needed
EN186: Needed
AO187: 4 | AQ187: To ensure that 100 project children will improve their academic | CZ187: COORDINATOR | EN187: Needed
AQ188: performance by 30% by the end of June, 2014 by effective monitoring | EN188: Needed
AQ189: through school visitation | EN189: Needed
AO190: 5 | AQ190: By the end of FY 14, the Reading and Learning Centre will be in | CZ190: COORDINATOR | EN190: Needed
AQ191: Operation | EN191: Needed
AO192: 6 | AQ192: By the end of FY 14, 70% of project children can write their | CZ192: COORDINATOR | EN192: Needed
AQ193: own letters | EN193: Needed
AO194: 7 | AQ194: By the end of FY 14, 30 project children should be able to participate in | CZ194: COORDINATOR | EN194: Needed
AQ195: an income generating activity such as bead making and art works. | EN195: Needed
EN196: Needed
N197: SOCIO-EMOTIONAL | AO197: 1 | AQ197: To ensure that 170 project children will avoid negative social practices/ | CZ197: ACCOUNT CLERK | EN197: Needed
AQ198: behaviours such as fighting, insulting by the end June, 2014. | EN198: Needed
AO199: 2 | AQ199: To form educative clubs such as sports clubs, cadet coup | CZ199: ACCOUNT CLERK | EN199: Needed
AQ200: drama and dance choreography clubs etc. by the end of June, 2014. | EN200: Needed
... 362 more rows

Sheet Codes1
B1: How the codes work | Q1: Expense codes by program
B2: CDSP | J2: CSP | Q2: CDSP Code | R2: CDSP Code Description | S2: CSP Code | T2: CSP Code Description
D3: E010 | L3: E021 | Q3: E010 | R3: Educational Supplies and Fees | S3: 0
D4: E015 | L4: E031 | Q4: E015 | R4: School Uniforms or Other Clothing | S4: 0
D5: E020 | L5: E032 | Q5: E020 | R5: CDSP Supplies and Equipment | S5: E021 | T5: CSP Supplies and Equipment
D6: E025 | L6: E041 | Q6: E025 | R6: Teaching Aids / Reference Materials | S6: 0
D7: E030 | L7: E051 | Q7: E030 | R7: CDSP Health/Medical Treatment and Supplies | S7: E031 | T7: CSP Health/Medical Treatment and Supplies
D8: E035 | J8: R101 | L8: E056 | N8: E101 | Q8: E035 | R8: Personal Hygiene | S8: E032 | T8: CSP Training on GOBI-FFF
D9: E040 | L9: E061 | Q9: E040 | R9: Food/Nutrition/Cooking Utensils | S9: E041 | T9: CSP Feeding and Food Supplements
B10: R100 | D10: E045 | F10: E100 | L10: E066 | Q10: E045 | R10: Domestic Assistance | S10: 0
D11: E050 | L11: E071 | Q11: E050 | R11: CDSP Livelihood Skills Training | S11: E051 | T11: CSP Livelihood Skills Training
D12: E055 | L12: E076 | Q12: E055 | R12: CDSP Social Development | S12: E056 | T12: CSP Emotional Development
D13: E060 | L13: E077 | Q13: E060 | R13: CDSP Spiritual Development | S13: E061 | T13: CSP Spiritual Development
D14: E065 | Q14: E065 | R14: CDSP Salaries | S14: E066 | T14: CSP Salaries
D15: E070 | J15: R201 | N15: E201 | Q15: E070 | R15: CDSP Administration | S15: E071 | T15: CSP Administration
D16: E075 | I16: Grant | J16: R301 | N16: E301 | Q16: E075 | R16: CDSP Transportation | S16: E076 | T16: CSP Transportation
D17: E080 | I17: Grant | J17: R316 | N17: E316 | Q17: E080 | R17: Sponsor Relations | S17: E077 | T17: Other CSP Expenses
J18: R321 | N18: E321 | Q18: E200 | R18: CDSP Gifts Expenses | S18: E201 | T18: CSP Gifts Expenses
B19: R200 | F19: E200 | I19: Grant | J19: R331 | N19: E331 | Q19: E300 | R19: CDSP Reimbursable Medical Expenses | S19: E301 | T19: CSP Reimbursable Medical Expenses
A20: Grant | B20: R300 | F20: E300 | I20: Grant | J20: R401 | N20: E401 | Q20: E310 | R20: Top up Fees Expenses | S20: 0
A21: Grant | B21: R310 | F21: E310 | I21: Grant | J21: R501 | N21: E501 | Q21: E315 | R21: CDSP HIV/AIDS Intervention Expenses | S21: E316 | T21: CSP HIV/AIDS Intervention Expenses
A22: Grant | B22: R315 | F22: E315 | J22: R516 | N22: E516 | Q22: E320 | R22: CDSP CIV Expenses | S22: E321 | T22: CSP CIV Expenses
A23: Grant | B23: R320 | F23: E320 | Q23: E330 | R23: CDSP HVC Expenses | S23: E331 | T23: CSP HVC Expenses
A24: Grant | B24: R330 | F24: E330 | Q24: E400 | R24: CDSP Expenses out of Funds from Other Agencies | S24: E401 | T24: CSP Expenses out of Funds from Other Agencies
B25: R400 | F25: E400 | Q25: E500 | R25: CDSP Local Contributions Expenses | S25: E501 | T25: CSP Local Contributions Expenses
B26: R500 | F26: E500 | Q26: 0 | S26: E516 | T26: CSP Income Generating Activities Expenses
B27: R600 | F27: E600 | Q27: E600 | R27: Expenses out of Funds Generated from CDSP | S27: 0
R28: Activities of the Centre
Q29: Total | R29: =COUNTA(R3:R28) -> 25 | T29: =COUNTA(T3:T28) -> 19
A30: *Note: All codes displayed as having a one-to-one mapping must be used exactly as specified without balance or overspent.
A31: *Note: All codes designated as "Grant" are funds with strict guidelines and have managers. Consult your PF on how to assess such funds. | Q31: *Always code items under the parent activity and not in isolation
Q34: Expense codes by activity
Q35: CDSP Code | R35: Code Description | S35: CSP Code
Q36: E010 | R36: Educational Supplies and Fees | S36: 0
Q37: E015 | R37: Uniforms and Clothing | S37: 0
Q38: E020 | R38: Supplies and Equipment | S38: E021
Q39: E025 | R39: Teaching/Reference Material | S39: E021
Q40: E030 | R40: Health/Medical/Screening | S40: E031
Q41: E035 | R41: Hygiene | S41: E031
Q42: E040 | R42: Food | S42: E041
Q43: E045 | R43: Domestic Assistance | S43: E077
Q44: E050 | R44: Livelihood Skills Training | S44: E051
Q45: E055 | R45: Social Development | S45: E056
Q46: E060 | R46: Spiritual Development | S46: E061
Q47: E070 | R47: Training | S47: E032
Q48: E065 | R48: Salaries | S48: E066
Q49: E070 | R49: Administration | S49: E071
Q50: E075 | R50: Transportation | S50: E076
Q51: E080 | R51: Sponsor Relations | S51: 0
Q52: E200 | R52: Gifts | S52: E201
Q53: E300 | R53: Reimbursable Medical Expenses | S53: E301
Q54: E310 | R54: Top Up Fees | S54: 0
Q55: E315 | R55: HIV/AIDS Expenses | S55: E316
Q56: E320 | R56: CIV Expenses | S56: E321
Q57: E330 | R57: Highly Vulnerable Children (HVC) Expenses | S57: E331
Q58: E400 | R58: Expenses out of Funds of Other Agencies | S58: E401
Q59: E500 | R59: Local Contributions | S59: E501
Q60: 0 | R60: Income Generating Activities (IGA) Expenses | S60: E516
Q61: E600 | R61: Expenses out of Funds Generated from Activities run by the Centre | S61: 0

Sheet Codes2
A1: List of all expense codes
A2: Account E010 | C2: Educational Supplies and Fees
B3: Description | C3: Examples
B4: These are budgeted expenses that are made for individual children in the sponsorship program for educational supplies and fees. | C4: 1. School fees (printing fee, watchman fee, etc.)
C5: 2. Text books
C6: 3. Pens
C7: 4. Pencils
C8: 5. Rulers
C9: 6. Sharpeners
C10: 7. Mathematical sets
C11: 8. Drawing boards
C12: 9. Progress (terminal) report cards
C13: 10. Exercise books
C14: 11. Reading books
C15: 12. Dictionaries
C16: 13. Calculators
C17: 14. Table and chair (if needed by child to stay in school)
C18: 15. School bags
C19: 16. T&T for volunteer teachers who teach cognitive curriculum
C20: 17. Cost of transportation associated with purchasing any of the above items
B21: Note: The above items shall become the property of the CDSP child.
A23: Account E015 | C23: School Uniforms or Other Clothing
B24: Description | C24: Examples
B25: These are budgeted expenses for all manner of clothing that will become the property of the CDSP child. Note: money received as a gift for the child from his/her sponsor that is used to purchase clothing for the child, should be charged to E200 and not to this account. | C25: 1. School uniforms
C26: 2. Project (centre) uniforms
C27: 3. Clothing for clubs and groups (e.g. choir robes, choreography attire, etc.)
C28: 4. Stockings
C29: 5. Shoes
C30: 6. Jerseys
C31: 7. Goggles
C32: 8. Helmet
C33: 9. Gloves
C34: 10. Wellington boots
C35: 11. Skin guides
C36: 12. Overalls
C37: 13. Aprons
C38: 14. Caps
C39: 15. Cooking gloves
C40: 16. Nose masks
C41: 17. Boots
C42: 18. Cost of transportation associated with purchasing any of the above items
B43: Note: The above items shall become the property of the CDSP child.
A49: Account E020 | C49: CDSP Supplies and Equipment
B50: Description | C50: Examples
B51: These are budgeted expenses for supplies and equipment, which will become the property of the CDSP centre. These supplies should be strictly stationery, electronic, or electrical in nature. | C51: 1. Deep freezer
C52: 2. Computer
C53: 3. Modem
C54: 4. Pen drive
C55: 5. Projector
C56: 6. Water dispenser
C57: 7. Printer
C58: 8. Chalk
C59: 9. Photocopier
C60: 10. Generator set
C61: 11. Class attendance registers
C62: 12. Cash analysis book
C63: 13. Attendance books for staff/volunteers
C64: 14. Television set
C65: 15. Television stand
C66: 16. Public Address (P.A) system
C67: 17. All files
C68: 18. Pens, pencils, ruler, etc for use at the centre
C69: 19. Duplicating ink
C70: 20. DVD player
C71: 21. Wall clock
C72: 22. A4 sheets
C73: 23. Manila cards
C74: 24. Visual aids
C75: 25. Flip chart and stand
C76: 26. Cost of transportation associated with purchasing any of the above items
B77: Note: The above items shall become the property of the CDSP centre.
A79: Account E021 | C79: CSP Supplies and Equipment
B80: All budgeted expenses relating to the purchase of general purpose equipments and supplies for CSP. | C80: 1. Hygiene items for CSP group activities
C81: 2. Chairs/tables purchased for CSP activities
C82: 3. Stationery (e.g. exercise books, pencils, etc.) for CSP caregivers
C83: 4. T&T to purchase stationery for CSP use
C84: 5. Attendance register for CSP caregivers
B85: Note: The above items shall become the property of the CSP centre.
A97: Account E025 | C97: Teaching Aids / Reference Materials
B98: Description | C98: Examples
B99: These are strictly budgeted expenses on those items, materials or textbooks that are to aid teaching and reference, and will remain the property of the CDSP centre. | C99: 1. CDs for learning activities
C100: 2. Posters
C101: 3. Maps
C102: 4. Charts
C103: 5. Globe
C104: 6. Course handout materials
C105: 7. Dictionaries
C106: 8. Encyclopaedias
C107: 9. Textbooks for reference
C108: 10. Bibles for reference
C109: 11. Atlas
C110: 12. Cost of transportation associated with purchasing any of the above items
B111: Note: The above items shall become the property of the CDSP centre.
A113: Account E030 | C113: CDSP Health/Medical Treatment and Supplies
B114: Description | C114: Examples
B115: All budgeted expenses incurred in saving the life of a registered child or maintaining his/her health. Note: Expenses on an individual child with one incidence of a sickness (may require constant visitation to the doctor, surgery, or any special operation) that exceeds GHS30, the excess should be claimed from CIGH through the PF. | C115: 1. Medical bills
C116: 2. First Aid drugs
C117: 3. Weight scales
C118: 4. Height measure
C119: 5. Health checkups
C120: 6. Health screening
C121: 7. Health education
C122: 8. Prescribed drugs
C123: 9. T&T for volunteer teachers who teach physical curriculum
C124: 10. Cost of transportation associated with purchasing any of the above items
A134: Account E031 | C134: CSP Health/Medical Treatment and Supplies
B135: Description | C135: Examples
B136: All medical bills incurred in treating an MCU of a medical condition. All budgeted expenses in medicall screening MCUs and first aid items. | C136: 1. Medical bills of MCU
C137: 2. Health screening of MCU
C138: 3. T&T to health facility
C139: 4. Cost of child delivery
C140: 5. Birth certificate
C141: 6. Ear piercing and circumcision
C142: 7. First aid items for CSP
A145: Account E032 | C145: CSP Training on GOBI-FFF
B146: Description | C146: Examples
B147: All budgeted expenses incurred in training CSP mothers on GOBI-FFF. | C147: 1. Training on CSP for beneficiaries
C148: 2. Any health training for beneficiaries
C149: 3. All items/materials purchased for the training
C150: 4. T&T to purchase training materials
C151: 5. Honorarium for trainer
A153: Account E035 | C153: Personal Hygiene
B154: Description | C154: Examples
B155: All budgeted expenses for hygiene supplies. | C155: 1. Soaps
C156: 2. Sponges
C157: 3. Towels
C158: 4. Sponge bags
C159: 5. Basins for washing
C160: 6. Tooth brushes
C161: 7. Tooth pastes
C162: 8. Dust bins
C163: 9. Brooms
C164: 10. Antiseptics
C165: 11. Ceiling brushes
C166: 12. Hoes
C167: 13. Wheel barrows
C168: 14. Shovels
C169: 15. Rakes
C170: 16. Razor blades
C171: 17. Expenses incurred during hygiene training
C172: 18. Toilet rolls
C173: 19. Sanitary personnel’s allowances
C174: 20. Cost of transportation associated with purchasing any of the above items
B175: Note: The above items shall become the property of the CDSP child or the CDSP centre.
A193: Account E040 | C193: Food/Nutrition/Cooking Utensils
B194: Description | C194: Examples
B195: All budgeted expenses for food solely consumed by the CDSP children, and every other item necessary in the preparation of the food. | C195: 1. Sauce pans
C196: 2. Plates
C197: 3. Bowls
C198: 4. Cooking utensils
C199: 5. Cups
C200: 6. Forks
C201: 7. Spoons
C202: 8. Expenses on nutritional training
C203: 9. Firewood/charcoal
C204: 10. Liquid petroleum gas
C205: 11. Gas burner
C206: 12. Coal pots
C207: 13. Cauldron
C208: 14. Serving tray
C209: 15. Pans
C210: 16. Ladles
C211: 17. Plastic buckets
C212: 18. Blender
C213: 19. Aprons for cooks
C214: 20. Food items
C215: 21. Allowances for volunteer cooks
C216: 22. Cost of transportation associated with purchasing any of the above items
B217: Note: The above items shall become the property of the CDSP centre.
A219: Account E041 | C219: CSP Feeding and Food Supplements
B220: Description | C220: Examples
B221: All budgeted expenses relating to the purchase, preparation and serving of food for MCUs. All budgeted nutritional supplements for CSP babies. | C221: 1. Feeding for CSP group activities
C222: 2. T&T to market to purchase food stuffs
C223: 3. Fuel for cooking for CSP group activities
C224: 4. Volunteer cooks’ allowance
C225: 5. Cooking utensils
A241: Account E045 | C241: Domestic Assistance
B242: Description | C242: Examples
B243: These are budgeted expenses for the assistance provided to help the children in their home environment. It is another way the ICP goes an extra mile in assisting the child. | C243: 1. Blankets
C244: 2. Mattresses
C245: 3. Lanterns
C246: 4. Suitcases
C247: 5. Plates
C248: 6. Cups
C249: 7. Food storage containers
C250: 8. Bowls
C251: 9. Sauce pans
C252: 10. Clothing
C253: 11. Sandals
C254: 12. Cost of transportation associated with purchasing any of the above items
B255: Note: The above items shall become the property of the CDSP child or family and they shall benefit from it only once.
A257: Account E050 | C257: CDSP Livelihood Skills Training
B258: Description | C258: Examples
B259: All budgeted expenses that are related to the training of the children in skills/craft that could help them earn a living (livelihood skills). | C259: 1. All gardening tools and materials
C260: 2. All block/brick laying tools and materials
C261: 3. All carpentry tools and materials
C262: 4. All mechanical tools and materials
C263: 5. All sewing tools and materials
C264: 6. All catering tools and materials
C265: 7. All musical instruments (e.g. keyboards, drum sets, etc.)
... 227 more rows

Sheet Sheet1
